[Event "IV Elllobregat Open Chess Tmnt"]
[Site "Sant Boi de Llobregat, Spain"]
[Date "2023.12.01"]
[Round "2.36"]
[White "Pomes Marcet, Joan"]
[Black "Stoyanov, Tsvetan"]
[Result "0-1"]
[TimeControl "90min/40moves + 15min/end + 30sec from move 1"]
[WhiteFideId "2200139"]
[BlackFideId "2917173"]
[WhiteElo "2221"]
[BlackElo "2458"]

1. d4 {[%clk 01:30:20]} {[%emt 00:00:39]} d5 {[%clk 01:30:42]} {[%emt
00:00:18]} 2. c4 {[%clk 01:30:41]} {[%emt 00:00:09]} e6 {[%clk 01:30:48]}
{[%emt 00:00:24]} 3. Nc3 {[%clk 01:30:58]} {[%emt 00:00:12]} Nf6 {[%clk
01:31:00]} {[%emt 00:00:18]} 4. cxd5 {[%clk 01:31:08]} {[%emt 00:00:20]} exd5
{[%clk 01:31:24]} {[%emt 00:00:07]} 5. Bg5 {[%clk 01:31:13]} {[%emt 00:00:25]}
Bb4 {[%clk 01:30:59]} {[%emt 00:00:55]} 6. e3 {[%clk 01:30:45]} {[%emt
00:00:58]} h6 {[%clk 01:30:56]} {[%emt 00:00:33]} 7. Bh4 {[%clk 01:30:59]}
{[%emt 00:00:16]} g5 {[%clk 01:30:54]} {[%emt 00:00:33]} 8. Bg3 {[%clk
01:31:22]} {[%emt 00:00:06]} Ne4 {[%clk 01:31:18]} {[%emt 00:00:06]} 9. a3
{[%clk 01:28:55]} {[%emt 00:02:57]} Bxc3+ {[%clk 01:30:44]} {[%emt 00:01:05]}
10. bxc3 {[%clk 01:29:18]} {[%emt 00:00:07]} h5 {[%clk 01:30:52]} {[%emt
00:00:22]} 11. f3 {[%clk 01:29:12]} {[%emt 00:00:35]} Nxg3 {[%clk 01:30:49]}
{[%emt 00:00:34]} 12. hxg3 {[%clk 01:29:35]} {[%emt 00:00:07]} Nc6 {[%clk
01:29:43]} {[%emt 00:01:37]} 13. c4 {[%clk 01:18:01]} {[%emt 00:12:03]} dxc4
{[%clk 01:11:32]} {[%emt 00:18:42]} 14. Bxc4 {[%clk 01:18:11]} {[%emt
00:00:20]} Qe7 {[%clk 01:11:37]} {[%emt 00:00:25]} 15. Kf2 {[%clk 01:01:22]}
{[%emt 00:17:18]} Bd7 {[%clk 01:10:40]} {[%emt 00:01:27]} 16. Ne2 {[%clk
00:54:45]} {[%emt 00:07:07]} O-O-O {[%clk 00:44:24]} {[%emt 00:26:48]} 17. Qd2
{[%clk 00:53:12]} {[%emt 00:02:01]} h4 {[%clk 00:31:08]} {[%emt 00:13:47]} 18.
Bd5 {[%clk 00:37:57]} {[%emt 00:15:45]} g4 {[%clk 00:24:41]} {[%emt 00:06:58]}
19. fxg4 {[%clk 00:23:21]} {[%emt 00:15:05]} hxg3+ {[%clk 00:17:22]} {[%emt
00:07:48]} 20. Nxg3 {[%clk 00:19:19]} {[%emt 00:04:31]} Qf6+ {[%clk 00:16:43]}
{[%emt 00:01:10]} 21. Bf3 {[%clk 00:15:41]} {[%emt 00:04:07]} Bxg4 {[%clk
00:17:11]} {[%emt 00:00:02]} 22. Qb2 {[%clk 00:12:25]} {[%emt 00:03:46]} Rhg8
{[%clk 00:12:45]} {[%emt 00:04:57]} 23. Rab1 {[%clk 00:09:10]} {[%emt
00:03:44]} b6 {[%clk 00:12:45]} {[%emt 00:00:29]} 24. Qb5 {[%clk 00:07:23]}
{[%emt 00:02:18]} Bxf3 {[%clk 00:11:20]} {[%emt 00:01:55]} 25. gxf3 {[%clk
00:07:46]} {[%emt 00:00:06]} Nxd4 {[%clk 00:11:31]} {[%emt 00:00:20]} 26. Qh5
{[%clk 00:05:18]} {[%emt 00:02:57]} Rxg3 {[%clk 00:04:43]} {[%emt 00:07:19]} 27.
Kxg3 {[%clk 00:04:47]} {[%emt 00:01:00]} Nf5+ {[%clk 00:05:12]} {[%emt
00:00:01]} 28. Kf2 {[%clk 00:04:48]} {[%emt 00:00:29]} Qe6 {[%clk 00:00:45]}
{[%emt 00:04:58]} 29. Rbe1 {[%clk 00:03:05]} {[%emt 00:02:12]} Qa2+ {[%clk
00:00:55]} {[%emt 00:00:22]} 30. Re2 {[%clk 00:02:19]} {[%emt 00:01:16]} Qxe2+
{[%clk 00:01:23]} {[%emt 00:00:02]} 31. Kxe2 {[%clk 00:02:43]} {[%emt
00:00:06]} Ng3+ {[%clk 00:01:50]} {[%emt 00:00:04]} 32. Kf2 {[%clk 00:03:03]}
{[%emt 00:00:08]} Nxh5 {[%clk 00:02:18]} {[%emt 00:00:03]} 33. Rxh5 {[%clk
00:03:27]} {[%emt 00:00:06]} Rd2+ {[%clk 00:02:29]} {[%emt 00:00:19]} 34. Kg3
{[%clk 00:03:52]} {[%emt 00:00:05]} Rd3 {[%clk 00:02:26]} {[%emt 00:00:33]} 35.
e4 {[%clk 00:01:19]} {[%emt 00:03:02]} Kd7 {[%clk 00:02:36]} {[%emt 00:00:20]}
36. Kg4 {[%clk 00:01:23]} {[%emt 00:00:26]} Rxa3 {[%clk 00:02:52]} {[%emt
00:00:15]} 37. f4 {[%clk 00:01:47]} {[%emt 00:00:04]} a5 {[%clk 00:02:24]}
{[%emt 00:00:58]} 38. Rh7 {[%clk 00:01:44]} {[%emt 00:00:33]} Ke7 {[%clk
00:02:49]} {[%emt 00:00:05]} 39. e5 {[%clk 00:01:38]} {[%emt 00:00:36]} Re3
{[%clk 00:00:55]} {[%emt 00:02:23]} 40. Rh6 {[%clk 00:16:59]} {[%emt 00:00:09]}
Rc3 {[%clk 00:15:38]} {[%emt 00:00:48]} 41. f5 {[%clk 00:17:07]} {[%emt
00:00:21]} Rc5 {[%clk 00:14:06]} {[%emt 00:02:03]} 42. Kf4 {[%clk 00:17:25]}
{[%emt 00:00:11]} a4 {[%clk 00:13:36]} {[%emt 00:01:00]} 43. Rh7 {[%clk
00:16:28]} {[%emt 00:01:27]} a3 {[%clk 00:13:23]} {[%emt 00:00:44]} 44. e6
{[%clk 00:16:29]} {[%emt 00:00:28]} a2 {[%clk 00:13:37]} {[%emt 00:00:16]} 45.
Rxf7+ {[%clk 00:16:47]} {[%emt 00:00:12]} Ke8 {[%clk 00:13:58]} {[%emt
00:00:10]} 0-1

[Event "IV Elllobregat Open Chess Tmnt"]
[Site "Sant Boi de Llobregat, Spain"]
[Date "2023.12.01"]
[Round "2.37"]
[White "Zwirs, Nico"]
[Black "Banos, Oscar"]
[Result "1/2-1/2"]
[TimeControl "90min/40moves + 15min/end + 30sec from move 1"]
[WhiteFideId "1036432"]
[BlackFideId "107174"]
[WhiteElo "2458"]
[BlackElo "2188"]

1. e4 {[%clk 01:30:59]} {[%emt 00:00:01]} c5 {[%clk 01:30:54]} {[%emt
00:00:07]} 2. Nf3 {[%clk 01:31:26]} {[%emt 00:00:02]} Nc6 {[%clk 01:31:16]}
{[%emt 00:00:08]} 3. d4 {[%clk 01:31:43]} {[%emt 00:00:13]} cxd4 {[%clk
01:31:36]} {[%emt 00:00:10]} 4. Nxd4 {[%clk 01:32:09]} {[%emt 00:00:04]} e5
{[%clk 01:31:53]} {[%emt 00:00:12]} 5. Nb5 {[%clk 01:31:21]} {[%emt 00:01:18]}
d6 {[%clk 01:32:04]} {[%emt 00:00:19]} 6. c4 {[%clk 01:30:43]} {[%emt
00:01:08]} g6 {[%clk 01:30:55]} {[%emt 00:01:39]} 7. Bd3 {[%clk 01:29:38]}
{[%emt 00:01:36]} Nf6 {[%clk 01:29:52]} {[%emt 00:01:33]} 8. O-O {[%clk
01:29:03]} {[%emt 00:01:04]} Bg7 {[%clk 01:29:48]} {[%emt 00:00:35]} 9. N5c3
{[%clk 01:26:16]} {[%emt 00:03:17]} O-O {[%clk 01:24:18]} {[%emt 00:05:59]} 10.
Nd5 {[%clk 01:24:03]} {[%emt 00:02:43]} Nxd5 {[%clk 01:23:38]} {[%emt
00:01:10]} 11. cxd5 {[%clk 01:23:32]} {[%emt 00:01:02]} Nb4 {[%clk 01:22:26]}
{[%emt 00:01:42]} 12. Be2 {[%clk 01:22:18]} {[%emt 00:01:43]} f5 {[%clk
01:18:21]} {[%emt 00:04:35]} 13. Nc3 {[%clk 01:17:58]} {[%emt 00:04:51]} f4
{[%clk 01:13:23]} {[%emt 00:05:27]} 14. Bd2 {[%clk 01:13:36]} {[%emt 00:04:51]}
Na6 {[%clk 01:10:17]} {[%emt 00:03:37]} 15. a4 {[%clk 01:04:54]} {[%emt
00:09:12]} Nc7 {[%clk 01:04:15]} {[%emt 00:06:33]} 16. Nb5 {[%clk 00:50:09]}
{[%emt 00:15:14]} Ne8 {[%clk 01:00:47]} {[%emt 00:03:58]} 17. Rc1 {[%clk
00:38:33]} {[%emt 00:12:07]} Rf7 {[%clk 00:56:03]} {[%emt 00:05:14]} 18. Qb3
{[%clk 00:31:29]} {[%emt 00:07:34]} Bf8 {[%clk 00:50:01]} {[%emt 00:06:32]} 19.
Rc2 {[%clk 00:30:41]} {[%emt 00:01:17]} Bd7 {[%clk 00:35:33]} {[%emt 00:14:59]}
20. Rfc1 {[%clk 00:30:03]} {[%emt 00:01:07]} a6 {[%clk 00:29:14]} {[%emt
00:06:49]} 21. Na3 {[%clk 00:16:38]} {[%emt 00:13:54]} Nf6 {[%clk 00:16:49]}
{[%emt 00:12:56]} 22. f3 {[%clk 00:16:55]} {[%emt 00:00:13]} Qe8 {[%clk
00:17:04]} {[%emt 00:00:16]} 23. Rc7 {[%clk 00:14:03]} {[%emt 00:03:22]} g5
{[%clk 00:15:02]} {[%emt 00:02:32]} 24. Qb6 {[%clk 00:06:22]} {[%emt 00:08:10]}
g4 {[%clk 00:13:34]} {[%emt 00:01:58]} 25. Nc4 {[%clk 00:06:05]} {[%emt
00:00:48]} gxf3 {[%clk 00:08:10]} {[%emt 00:05:53]} 26. Bxf3 {[%clk 00:06:34]}
{[%emt 00:00:01]} Rg7 {[%clk 00:06:32]} {[%emt 00:02:08]} 27. Nxd6 {[%clk
00:06:15]} {[%emt 00:00:50]} Qg6 {[%clk 00:06:51]} {[%emt 00:00:11]} 28. Nf5
{[%clk 00:05:40]} {[%emt 00:01:04]} Bxf5 {[%clk 00:05:55]} {[%emt 00:01:27]} 29.
exf5 {[%clk 00:06:09]} {[%emt 00:00:01]} Qxf5 {[%clk 00:05:34]} {[%emt
00:00:51]} 30. Qe6+ {[%clk 00:02:00]} {[%emt 00:04:39]} Qxe6 {[%clk 00:06:01]}
{[%emt 00:00:03]} 31. dxe6 {[%clk 00:02:28]} {[%emt 00:00:01]} e4 {[%clk
00:05:57]} {[%emt 00:00:35]} 32. Be2 {[%clk 00:01:16]} {[%emt 00:01:42]} Bd6
{[%clk 00:06:17]} {[%emt 00:00:10]} 33. Rxg7+ {[%clk 00:01:23]} {[%emt
00:00:23]} Kxg7 {[%clk 00:06:46]} 34. Bc3 {[%clk 00:01:19]} {[%emt 00:00:34]}
Kg6 {[%clk 00:06:37]} {[%emt 00:00:39]} 35. Rd1 {[%clk 00:01:30]} {[%emt
00:00:19]} Bc5+ {[%clk 00:06:21]} {[%emt 00:00:46]} 36. Kf1 {[%clk 00:01:12]}
{[%emt 00:00:48]} Kf5 {[%clk 00:05:43]} {[%emt 00:01:08]} 37. Bc4 {[%clk
00:00:43]} {[%emt 00:00:59]} b5 {[%clk 00:05:50]} {[%emt 00:00:23]} 38. axb5
{[%clk 00:00:52]} {[%emt 00:00:22]} axb5 {[%clk 00:06:18]} {[%emt 00:00:02]} 39.
Bd5 {[%clk 00:00:41]} {[%emt 00:00:40]} Ra7 {[%clk 00:06:01]} {[%emt 00:00:47]}
40. Bxf6 {[%clk 00:15:36]} {[%emt 00:00:35]} Kxf6 {[%clk 00:21:28]} {[%emt
00:00:03]} 41. Bxe4 {[%clk 00:14:28]} {[%emt 00:01:38]} Kxe6 {[%clk 00:21:24]}
{[%emt 00:00:33]} 42. Ke2 {[%clk 00:14:47]} {[%emt 00:00:11]} Bd6 {[%clk
00:17:31]} {[%emt 00:04:23]} 43. Kf3 {[%clk 00:08:37]} {[%emt 00:06:40]} b4
{[%clk 00:10:58]} {[%emt 00:07:04]} 44. b3 {[%clk 00:08:19]} {[%emt 00:00:48]}
Be5 {[%clk 00:07:30]} {[%emt 00:03:57]} 45. Rd8 {[%clk 00:04:43]} {[%emt
00:04:06]} Rc7 {[%clk 00:06:51]} {[%emt 00:01:11]} 46. Bd3 {[%clk 00:04:03]}
{[%emt 00:01:09]} Ke7 {[%clk 00:03:30]} {[%emt 00:03:50]} 47. Rd5 {[%clk
00:04:01]} {[%emt 00:00:31]} Bd6 {[%clk 00:03:07]} {[%emt 00:00:54]} 48. Bc4
{[%clk 00:03:34]} {[%emt 00:00:56]} Rc5 {[%clk 00:02:57]} {[%emt 00:00:42]} 49.
Rd2 {[%clk 00:04:03]} Re5 {[%clk 00:02:56]} {[%emt 00:00:32]} 50. Ra2 {[%clk
00:04:11]} {[%emt 00:00:21]} h5 {[%clk 00:02:37]} {[%emt 00:00:49]} 51. Ra7+
{[%clk 00:04:03]} {[%emt 00:00:37]} Kf6 {[%clk 00:01:19]} {[%emt 00:01:49]} 52.
Ra6 {[%clk 00:02:38]} {[%emt 00:01:55]} Re3+ {[%clk 00:01:41]} {[%emt
00:00:09]} 53. Kf2 {[%clk 00:03:07]} {[%emt 00:00:01]} Ke7 {[%clk 00:01:54]}
{[%emt 00:00:17]} 54. Ra7+ {[%clk 00:02:01]} {[%emt 00:01:36]} Kf6 {[%clk
00:02:11]} {[%emt 00:00:12]} 55. Rf7+ {[%clk 00:01:46]} {[%emt 00:00:44]} Kg6
{[%clk 00:00:57]} {[%emt 00:01:45]} 56. Rd7 {[%clk 00:01:34]} {[%emt 00:00:43]}
Be5 {[%clk 00:01:25]} {[%emt 00:00:02]} 57. Rd5 {[%clk 00:00:38]} {[%emt
00:01:25]} h4 {[%clk 00:01:06]} {[%emt 00:00:49]} 58. Rd8 {[%clk 00:00:40]}
{[%emt 00:00:28]} Rc3 {[%clk 00:01:19]} {[%emt 00:00:17]} 59. h3 {[%clk
00:00:40]} {[%emt 00:00:31]} Bc7 {[%clk 00:00:53]} {[%emt 00:00:56]} 60. Rd7
{[%clk 00:00:39]} {[%emt 00:00:31]} Bb6+ {[%clk 00:01:06]} {[%emt 00:00:17]} 61.
Ke2 {[%clk 00:00:53]} {[%emt 00:00:15]} Be3 {[%clk 00:01:12]} {[%emt 00:00:25]}
62. Bd5 {[%clk 00:00:39]} {[%emt 00:00:43]} Kf6 {[%clk 00:01:32]} {[%emt
00:00:10]} 63. Rb7 {[%clk 00:00:43]} {[%emt 00:00:26]} Ke5 {[%clk 00:01:40]}
{[%emt 00:00:22]} 64. Rb5 {[%clk 00:00:36]} {[%emt 00:00:37]} Bc5 {[%clk
00:02:09]} {[%emt 00:00:02]} 65. Bc4 {[%clk 00:00:42]} {[%emt 00:00:23]} Kd4
{[%clk 00:02:35]} {[%emt 00:00:05]} 66. Rb7 {[%clk 00:00:52]} {[%emt 00:00:19]}
Rg3 {[%clk 00:02:38]} {[%emt 00:00:28]} 67. Rd7+ {[%clk 00:00:39]} {[%emt
00:00:43]} Kc3 {[%clk 00:03:02]} {[%emt 00:00:06]} 68. Kf1 {[%clk 00:00:52]}
{[%emt 00:00:16]} Bd4 {[%clk 00:03:10]} {[%emt 00:00:23]} 69. Rf7 {[%clk
00:01:03]} {[%emt 00:00:18]} f3 {[%clk 00:02:17]} {[%emt 00:01:23]} 70. Rxf3+
{[%clk 00:01:23]} {[%emt 00:00:10]} Rxf3+ {[%clk 00:02:41]} {[%emt 00:00:07]}
71. gxf3 {[%clk 00:01:52]} Kd2 {[%clk 00:02:54]} {[%emt 00:00:16]} 72. f4
{[%clk 00:02:14]} {[%emt 00:00:08]} Ke3 {[%clk 00:02:49]} {[%emt 00:00:35]} 73.
f5 {[%clk 00:02:41]} {[%emt 00:00:03]} Kf4 {[%clk 00:02:53]} {[%emt 00:00:26]}
74. Be6 {[%clk 00:03:01]} {[%emt 00:00:10]} Kg3 {[%clk 00:02:58]} {[%emt
00:00:25]} 1/2-1/2

[Event "IV Elllobregat Open Chess Tmnt"]
[Site "Sant Boi de Llobregat, Spain"]
[Date "2023.12.01"]
[Round "2.38"]
[White "Ribera Veganzones, Serni"]
[Black "Koelle, Tobias"]
[Result "0-1"]
[TimeControl "90min/40moves + 15min/end + 30sec from move 1"]
[WhiteFideId "6900860"]
[BlackFideId "16207378"]
[WhiteElo "2187"]
[BlackElo "2453"]

1. e4 {[%clk 01:30:13]} {[%emt 00:00:46]} c5 {[%clk 01:30:52]} {[%emt
00:00:07]} 2. Nf3 {[%clk 01:30:19]} {[%emt 00:00:25]} Nc6 {[%clk 01:31:15]}
{[%emt 00:00:06]} 3. d4 {[%clk 01:30:42]} {[%emt 00:00:08]} cxd4 {[%clk
01:31:40]} {[%emt 00:00:06]} 4. Nxd4 {[%clk 01:31:03]} {[%emt 00:00:08]} Nf6
{[%clk 01:32:07]} {[%emt 00:00:03]} 5. Nc3 {[%clk 01:31:22]} {[%emt 00:00:11]}
e5 {[%clk 01:32:31]} {[%emt 00:00:06]} 6. Ndb5 {[%clk 01:31:41]} {[%emt
00:00:12]} d6 {[%clk 01:32:53]} {[%emt 00:00:08]} 7. Nd5 {[%clk 01:31:33]}
{[%emt 00:00:37]} Nxd5 {[%clk 01:33:15]} {[%emt 00:00:09]} 8. exd5 {[%clk
01:31:57]} {[%emt 00:00:05]} Nb8 {[%clk 01:33:41]} {[%emt 00:00:05]} 9. Qf3
{[%clk 01:32:08]} {[%emt 00:00:18]} a6 {[%clk 01:32:26]} {[%emt 00:01:46]} 10.
Qa3 {[%clk 01:32:20]} {[%emt 00:00:17]} Be7 {[%clk 01:30:53]} {[%emt 00:02:04]}
11. Bg5 {[%clk 01:32:22]} {[%emt 00:00:27]} f6 {[%clk 01:31:11]} {[%emt
00:00:11]} 12. Bd2 {[%clk 01:32:40]} {[%emt 00:00:13]} O-O {[%clk 01:31:03]}
{[%emt 00:00:38]} 13. Bb4 {[%clk 01:32:23]} {[%emt 00:00:47]} Qd7 {[%clk
01:28:49]} {[%emt 00:02:45]} 14. O-O-O {[%clk 01:24:02]} {[%emt 00:08:51]} Rd8
{[%clk 01:29:16]} {[%emt 00:00:04]} 15. Bd2 {[%clk 01:21:20]} {[%emt 00:03:11]}
b6 {[%clk 01:27:47]} {[%emt 00:01:58]} 16. c4 {[%clk 01:21:30]} {[%emt
00:00:21]} Qb7 {[%clk 01:19:13]} {[%emt 00:09:03]} 17. Nc3 {[%clk 01:20:50]}
{[%emt 00:01:09]} Bf5 {[%clk 01:16:47]} {[%emt 00:02:57]} 18. Be2 {[%clk
01:18:16]} {[%emt 00:03:04]} Nd7 {[%clk 01:11:21]} {[%emt 00:05:56]} 19. g4
{[%clk 01:13:25]} {[%emt 00:05:21]} Bg6 {[%clk 01:10:07]} {[%emt 00:01:44]} 20.
h4 {[%clk 01:08:14]} {[%emt 00:05:41]} b5 {[%clk 01:08:30]} {[%emt 00:02:08]}
21. cxb5 {[%clk 01:04:51]} {[%emt 00:03:53]} axb5 {[%clk 01:08:40]} {[%emt
00:00:18]} 22. Qb4 {[%clk 01:05:13]} {[%emt 00:00:10]} Nc5 {[%clk 01:05:50]}
{[%emt 00:03:20]} 23. Be3 {[%clk 00:56:53]} {[%emt 00:08:50]} Na4 {[%clk
00:58:11]} {[%emt 00:08:08]} 24. h5 {[%clk 00:46:22]} {[%emt 00:11:02]} Nxc3
{[%clk 00:57:39]} {[%emt 00:01:02]} 25. bxc3 {[%clk 00:46:36]} {[%emt
00:00:16]} Be8 {[%clk 00:47:47]} {[%emt 00:10:21]} 26. Rd2 {[%clk 00:41:54]}
{[%emt 00:05:13]} Ra4 {[%clk 00:45:43]} {[%emt 00:02:33]} 27. Qb2 {[%clk
00:36:02]} {[%emt 00:06:23]} Rda8 {[%clk 00:43:40]} {[%emt 00:02:32]} 28. Kb1
{[%clk 00:33:59]} {[%emt 00:02:34]} b4 {[%clk 00:28:40]} {[%emt 00:15:30]} 29.
c4 {[%clk 00:32:52]} {[%emt 00:01:37]} b3 {[%clk 00:27:08]} {[%emt 00:02:01]}
30. axb3 {[%clk 00:30:24]} {[%emt 00:02:59]} Ra3 {[%clk 00:25:44]} {[%emt
00:01:53]} 31. Bd1 {[%clk 00:29:21]} {[%emt 00:01:34]} Qa6 {[%clk 00:25:34]}
{[%emt 00:00:39]} 32. Qc3 {[%clk 00:29:18]} {[%emt 00:00:33]} Bd8 {[%clk
00:20:11]} {[%emt 00:05:53]} 33. Rb2 {[%clk 00:28:47]} {[%emt 00:01:02]} Ba5
{[%clk 00:20:14]} {[%emt 00:00:27]} 34. Qd3 {[%clk 00:28:44]} {[%emt 00:00:31]}
Bb4 {[%clk 00:17:38]} {[%emt 00:03:07]} 35. Bf3 {[%clk 00:25:57]} {[%emt
00:03:18]} Bb5 {[%clk 00:10:49]} {[%emt 00:07:19]} 36. Rd1 {[%clk 00:12:11]}
{[%emt 00:14:17]} Rc8 {[%clk 00:08:26]} {[%emt 00:02:52]} 37. Rc1 {[%clk
00:09:49]} {[%emt 00:02:52]} Ra1+ {[%clk 00:07:47]} {[%emt 00:01:08]} 38. Kc2
{[%clk 00:10:14]} {[%emt 00:00:05]} Bxc4 {[%clk 00:08:02]} {[%emt 00:00:15]}
0-1

[Event "IV Elllobregat Open Chess Tmnt"]
[Site "Sant Boi de Llobregat, Spain"]
[Date "2023.12.01"]
[Round "2.39"]
[White "Kawulok, Marek"]
[Black "Rozen, Eytan"]
[Result "0-1"]
[TimeControl "90min/40moves + 15min/end + 30sec from move 1"]
[WhiteFideId "337005"]
[BlackFideId "2816750"]
[WhiteElo "2183"]
[BlackElo "2451"]

1. e4 {[%clk 01:30:57]} {[%emt 00:00:02]} c6 {[%clk 01:03:38]} {[%emt
00:27:23]} 2. d4 {[%clk 01:31:06]} {[%emt 00:00:20]} d5 {[%clk 01:04:04]}
{[%emt 00:00:04]} 3. e5 {[%clk 01:31:31]} {[%emt 00:00:05]} c5 {[%clk
01:04:16]} {[%emt 00:00:19]} 4. dxc5 {[%clk 01:31:17]} {[%emt 00:00:44]} e6
{[%clk 01:04:41]} {[%emt 00:00:04]} 5. Be3 {[%clk 01:31:30]} {[%emt 00:00:17]}
Ne7 {[%clk 01:04:45]} {[%emt 00:00:26]} 6. Nf3 {[%clk 01:29:40]} {[%emt
00:02:21]} Nd7 {[%clk 01:01:05]} {[%emt 00:04:10]} 7. c4 {[%clk 01:26:52]}
{[%emt 00:03:17]} Nf5 {[%clk 00:55:29]} {[%emt 00:06:06]} 8. cxd5 {[%clk
01:25:35]} {[%emt 00:01:47]} Nxe3 {[%clk 00:55:45]} {[%emt 00:00:15]} 9. fxe3
{[%clk 01:25:59]} {[%emt 00:00:06]} Bxc5 {[%clk 00:54:39]} {[%emt 00:01:35]} 10.
dxe6 {[%clk 01:25:54]} {[%emt 00:00:36]} fxe6 {[%clk 00:54:56]} {[%emt
00:00:13]} 11. Bc4 {[%clk 01:24:00]} {[%emt 00:02:23]} Bxe3 {[%clk 00:47:24]}
{[%emt 00:08:02]} 12. Qe2 {[%clk 01:12:59]} {[%emt 00:11:32]} Qb6 {[%clk
00:45:21]} {[%emt 00:02:33]} 13. Bxe6 {[%clk 00:48:55]} {[%emt 00:24:33]} Nxe5
{[%clk 00:43:49]} {[%emt 00:02:02]} 14. Bxc8 {[%clk 00:48:41]} {[%emt
00:00:45]} Rxc8 {[%clk 00:39:29]} {[%emt 00:04:50]} 15. Nc3 {[%clk 00:48:42]}
{[%emt 00:00:28]} O-O {[%clk 00:31:53]} {[%emt 00:08:06]} 16. Nxe5 {[%clk
00:28:41]} {[%emt 00:20:31]} Rfe8 {[%clk 00:28:15]} {[%emt 00:04:09]} 17. Qb5
{[%clk 00:24:27]} {[%emt 00:04:44]} Qxb5 {[%clk 00:27:44]} {[%emt 00:01:01]} 18.
Nxb5 {[%clk 00:24:51]} {[%emt 00:00:06]} Rxe5 {[%clk 00:28:09]} {[%emt
00:00:05]} 19. Nc3 {[%clk 00:21:37]} {[%emt 00:03:44]} Bc1+ {[%clk 00:28:17]}
{[%emt 00:00:21]} 0-1